[Event "Late-Titled-Tuesday-Blitz-April-30-2024"]
[Site "Chess.com"]
[Date "2024.04.30"]
[Round "7"]
[White "Iuckyducky"]
[Black "Slovak_fighter2000"]
[Result "0-1"]
[WhiteElo "2238"]
[BlackElo "2464"]
[TimeControl "180+1"]
[EndTime "15:18:25 PDT"]
[Termination "Slovak_fighter2000 won by resignation"]

1. e4 {[%clk 0:00:42.9]} 1... c5 {[%clk 0:02:58.8]} 2. Nf3 {[%clk 0:00:42.5]}
2... Nc6 {[%clk 0:02:58.4]} 3. Bb5 {[%clk 0:00:41.8]} 3... e6 {[%clk 0:02:56.8]}
4. Bxc6 {[%clk 0:00:40.2]} 4... bxc6 {[%clk 0:02:56.7]} 5. O-O {[%clk
0:00:41.1]} 5... Ne7 {[%clk 0:02:53.9]} 6. e5 {[%clk 0:00:40.6]} 6... Ng6 {[%clk
0:02:51.5]} 7. Re1 {[%clk 0:00:40]} 7... f6 {[%clk 0:02:45.2]} 8. d4 {[%clk
0:00:36.2]} 8... cxd4 {[%clk 0:02:45.2]} 9. Qxd4 {[%clk 0:00:36.6]} 9... Be7
{[%clk 0:02:39.3]} 10. c4 {[%clk 0:00:35]} 10... O-O {[%clk 0:02:30.5]} 11. Nc3
{[%clk 0:00:35.1]} 11... fxe5 {[%clk 0:02:21.6]} 12. Nxe5 {[%clk 0:00:34.9]}
12... Nxe5 {[%clk 0:02:18.3]} 13. Qxe5 {[%clk 0:00:34.1]} 13... d6 {[%clk
0:02:12.1]} 14. Qg3 {[%clk 0:00:34]} 14... e5 {[%clk 0:01:40.9]} 15. Be3 {[%clk
0:00:30.8]} 15... Qc7 {[%clk 0:01:30.3]} 16. Rad1 {[%clk 0:00:29.2]} 16... Be6
{[%clk 0:01:25.7]} 17. b3 {[%clk 0:00:28.3]} 17... Rad8 {[%clk 0:01:20.1]} 18.
h3 {[%clk 0:00:28.3]} 18... d5 {[%clk 0:01:17.4]} 19. cxd5 {[%clk 0:00:26.2]}
19... cxd5 {[%clk 0:01:18.3]} 20. Nb5 {[%clk 0:00:25]} 20... Qb8 {[%clk
0:01:10.9]} 21. Nxa7 {[%clk 0:00:24]} 21... d4 {[%clk 0:01:00.1]} 22. Nc6 {[%clk
0:00:23]} 22... dxe3 {[%clk 0:00:59.9]} 23. Nxb8 {[%clk 0:00:06.5]} 23... exf2+
{[%clk 0:00:59.3]} 24. Kh2 {[%clk 0:00:07.2]} 24... fxe1=Q {[%clk 0:00:55]} 25.
Rxe1 {[%clk 0:00:08.1]} 25... Rxb8 {[%clk 0:00:52.2]} 26. Qxe5 {[%clk
0:00:08.5]} 26... Rb6 {[%clk 0:00:49.8]} 27. Qd4 {[%clk 0:00:05.1]} 27... Rd6
{[%clk 0:00:47.2]} 28. Qe3 {[%clk 0:00:01]} 28... Rfd8 {[%clk 0:00:44]} 29. a4
{[%clk 0:00:01.2]} 29... Bf6 {[%clk 0:00:39.3]} 30. a5 {[%clk 0:00:01.5]} 30...
Kf7 {[%clk 0:00:35.3]} 31. b4 {[%clk 0:00:02]} 31... Rb8 {[%clk 0:00:29.2]} 32.
b5 {[%clk 0:00:02.3]} 32... Rxb5 {[%clk 0:00:27.7]} 33. Qa7+ {[%clk 0:00:02.7]}
33... Rd7 {[%clk 0:00:26.1]} 34. Qe3 {[%clk 0:00:03]} 34... Re7 {[%clk
0:00:22.1]} 35. a6 {[%clk 0:00:03.4]} 35... Ra5 {[%clk 0:00:21.1]} 36. Qf3
{[%clk 0:00:00.7]} 36... Rxa6 {[%clk 0:00:20.2]} 37. Qh5+ {[%clk 0:00:01.6]}
37... Kg8 {[%clk 0:00:19.3]} 38. Rb1 {[%clk 0:00:01.9]} 38... Ra8 {[%clk
0:00:18.9]} 39. Rb6 {[%clk 0:00:01.4]} 39... Bf7 {[%clk 0:00:18.8]} 40. Qg4
{[%clk 0:00:00.4]} 40... Rae8 {[%clk 0:00:18.4]} 41. h4 {[%clk 0:00:00.8]} 41...
Be5+ {[%clk 0:00:18.6]} 42. Kh3 {[%clk 0:00:01.3]} 42... Be6 {[%clk 0:00:18.5]}
43. Rxe6 {[%clk 0:00:01.7]} 43... Rxe6 {[%clk 0:00:19.4]} 44. h5 {[%clk
0:00:02.3]} 44... h6 {[%clk 0:00:19.2]} 45. Qc4 {[%clk 0:00:02.1]} 45... Bf6
{[%clk 0:00:19.4]} 46. g4 {[%clk 0:00:02.7]} 46... Kh8 {[%clk 0:00:19.7]} 47.
Kh2 {[%clk 0:00:01.4]} 47... Re2+ {[%clk 0:00:19.8]} 48. Kg3 {[%clk 0:00:02]}
48... R8e3+ {[%clk 0:00:19.7]} 49. Kf4 {[%clk 0:00:02.6]} 49... Re4+ {[%clk
0:00:19.2]} 50. Qxe4 {[%clk 0:00:03.2]} 50... Rxe4+ {[%clk 0:00:20.1]} 51. Kxe4
{[%clk 0:00:04.1]} 51... Bg5 {[%clk 0:00:20.5]} 52. Kf5 {[%clk 0:00:04.6]} 52...
Kg8 {[%clk 0:00:21.4]} 53. Kg6 {[%clk 0:00:05]} 53... Kf8 {[%clk 0:00:21.9]} 54.
Kh7 {[%clk 0:00:05.2]} 54... Kf7 {[%clk 0:00:22.5]} 55. Kh8 {[%clk 0:00:05.4]}
55... Kf6 {[%clk 0:00:23.1]} 56. Kh7 {[%clk 0:00:05.5]} 56... Ke5 {[%clk
0:00:23.6]} 57. Kxg7 {[%clk 0:00:06]} 57... Kf4 {[%clk 0:00:24.5]} 58. Kf7
{[%clk 0:00:02]} 58... Kxg4 {[%clk 0:00:24.9]} 59. Kg6 {[%clk 0:00:02.9]} 59...
Kh4 {[%clk 0:00:24.9]} 60. Kf5 {[%clk 0:00:01.4]} 60... Kxh5 {[%clk 0:00:25.8]}
61. Ke4 {[%clk 0:00:02]} 61... Kg4 {[%clk 0:00:26.6]} 62. Kd3 {[%clk 0:00:01.4]}
62... Kf3 {[%clk 0:00:27.1]} 0-1

[Event "Late-Titled-Tuesday-Blitz-April-30-2024"]
[Site "Chess.com"]
[Date "2024.04.30"]
[Round "7"]
[White "JaackCamel"]
[Black "ArrestingPieces"]
[Result "0-1"]
[WhiteElo "2282"]
[BlackElo "2526"]
[TimeControl "180+1"]
[EndTime "15:18:30 PDT"]
[Termination "ArrestingPieces won on time"]

1. d4 {[%clk 0:03:00.9]} 1... d5 {[%clk 0:02:56.3]} 2. c4 {[%clk 0:03:00.3]}
2... e6 {[%clk 0:02:55.9]} 3. Nc3 {[%clk 0:02:59.7]} 3... Be7 {[%clk 0:02:56]}
4. cxd5 {[%clk 0:02:59.4]} 4... exd5 {[%clk 0:02:56.9]} 5. Bf4 {[%clk
0:02:59.2]} 5... Nf6 {[%clk 0:02:53.8]} 6. e3 {[%clk 0:02:58.8]} 6... O-O {[%clk
0:02:54]} 7. Bd3 {[%clk 0:02:56.1]} 7... c5 {[%clk 0:02:54.4]} 8. dxc5 {[%clk
0:02:55.4]} 8... Nc6 {[%clk 0:02:54.6]} 9. h3 {[%clk 0:02:53.5]} 9... Bxc5
{[%clk 0:02:54]} 10. Nf3 {[%clk 0:02:52.5]} 10... d4 {[%clk 0:02:53.9]} 11. exd4
{[%clk 0:02:29.5]} 11... Re8+ {[%clk 0:02:47.8]} 12. Be2 {[%clk 0:02:26.3]}
12... Nxd4 {[%clk 0:02:40.9]} 13. Nxd4 {[%clk 0:02:11.1]} 13... Qxd4 {[%clk
0:02:41.8]} 14. Qxd4 {[%clk 0:01:58.6]} 14... Bxd4 {[%clk 0:02:42.7]} 15. Nb5
{[%clk 0:01:43.2]} 15... Be5 {[%clk 0:02:27.8]} 16. Bxe5 {[%clk 0:01:26]} 16...
Rxe5 {[%clk 0:02:28.7]} 17. Nc3 {[%clk 0:01:26.1]} 17... Ne4 {[%clk 0:02:08.2]}
18. Nxe4 {[%clk 0:01:21.3]} 18... Rxe4 {[%clk 0:02:09.1]} 19. O-O-O {[%clk
0:01:16.4]} 19... Be6 {[%clk 0:02:03.7]} 20. Bf3 {[%clk 0:01:09.6]} 20... Ra4
{[%clk 0:01:35.9]} 21. Bd5 {[%clk 0:01:08.5]} 21... Bxd5 {[%clk 0:01:28.5]} 22.
Rxd5 {[%clk 0:01:08.1]} 22... Rxa2 {[%clk 0:01:29.2]} 23. Rhd1 {[%clk
0:01:07.8]} 23... Ra1+ {[%clk 0:01:18.8]} 24. Kc2 {[%clk 0:01:07.9]} 24... Rxd1
{[%clk 0:01:19.6]} 25. Rxd1 {[%clk 0:01:05.2]} 25... g6 {[%clk 0:01:13.1]} 26.
Rd7 {[%clk 0:01:05.2]} 26... Rb8 {[%clk 0:01:13.6]} 27. Kb3 {[%clk 0:01:04.7]}
27... Kg7 {[%clk 0:01:12.4]} 28. Kb4 {[%clk 0:01:04.4]} 28... Kf6 {[%clk
0:01:11.6]} 29. Kb5 {[%clk 0:01:02.4]} 29... Ke6 {[%clk 0:01:11.7]} 30. Rc7
{[%clk 0:01:02.1]} 30... h5 {[%clk 0:01:11.7]} 31. b4 {[%clk 0:01:00.5]} 31...
h4 {[%clk 0:01:07.8]} 32. g3 {[%clk 0:00:56.8]} 32... hxg3 {[%clk 0:00:47.2]}
33. fxg3 {[%clk 0:00:56.6]} 33... Rd8 {[%clk 0:00:47.9]} 34. Rxb7 {[%clk
0:00:54.8]} 34... Rd3 {[%clk 0:00:48.6]} 35. Rxa7 {[%clk 0:00:52.2]} 35... Rxg3
{[%clk 0:00:48.8]} 36. Kc6 {[%clk 0:00:42.8]} 36... Rc3+ {[%clk 0:00:47.4]} 37.
Kb6 {[%clk 0:00:41.7]} 37... Rxh3 {[%clk 0:00:48.3]} 38. b5 {[%clk 0:00:42.1]}
38... g5 {[%clk 0:00:44.9]} 39. Ra4 {[%clk 0:00:41.5]} 39... Rb3 {[%clk
0:00:44.5]} 40. Kc6 {[%clk 0:00:37.7]} 40... f5 {[%clk 0:00:40.7]} 41. Ra8
{[%clk 0:00:36.8]} 41... f4 {[%clk 0:00:40]} 42. b6 {[%clk 0:00:33.2]} 42... f3
{[%clk 0:00:25.7]} 43. Rf8 {[%clk 0:00:30.3]} 43... g4 {[%clk 0:00:25.4]} 44.
Rf4 {[%clk 0:00:30.4]} 44... g3 {[%clk 0:00:24.6]} 45. b7 {[%clk 0:00:20.9]}
45... f2 {[%clk 0:00:15.5]} 46. Kc7 {[%clk 0:00:14.9]} 46... Rxb7+ {[%clk
0:00:13.8]} 47. Kxb7 {[%clk 0:00:14.7]} 47... Ke5 {[%clk 0:00:12.4]} 48. Rf8
{[%clk 0:00:09.5]} 48... Ke4 {[%clk 0:00:10.9]} 49. Kc6 {[%clk 0:00:07.2]} 49...
Ke3 {[%clk 0:00:10]} 50. Kd5 {[%clk 0:00:06.1]} 50... g2 {[%clk 0:00:10.2]} 51.
Re8+ {[%clk 0:00:05.3]} 51... Kd3 {[%clk 0:00:10.2]} 52. Ra8 {[%clk 0:00:04.5]}
52... g1=Q {[%clk 0:00:09.9]} 53. Ra3+ {[%clk 0:00:04.8]} 53... Ke2 {[%clk
0:00:10.5]} 54. Ra2+ {[%clk 0:00:04.9]} 54... Kf3 {[%clk 0:00:11]} 55. Ra3+
{[%clk 0:00:05.2]} 55... Kg2 {[%clk 0:00:11.6]} 56. Ra2 {[%clk 0:00:05]} 56...
Qd1+ {[%clk 0:00:11.6]} 57. Kc4 {[%clk 0:00:04.1]} 57... Qd6 {[%clk 0:00:07.6]}
58. Kc3 {[%clk 0:00:01]} 58... Qe5+ {[%clk 0:00:07.1]} 0-1

[Event "Late-Titled-Tuesday-Blitz-April-30-2024"]
[Site "Chess.com"]
[Date "2024.04.30"]
[Round "7"]
[White "sassassasss"]
[Black "merinasian"]
[Result "0-1"]
[WhiteElo "2396"]
[BlackElo "2599"]
[TimeControl "180+1"]
[EndTime "15:18:32 PDT"]
[Termination "merinasian won on time"]

1. e4 {[%clk 0:02:58.6]} 1... d6 {[%clk 0:03:00.9]} 2. d4 {[%clk 0:02:58.4]}
2... Nd7 {[%clk 0:03:01.5]} 3. Nc3 {[%clk 0:02:57]} 3... g6 {[%clk 0:03:01.9]}
4. Be3 {[%clk 0:02:56.3]} 4... Bg7 {[%clk 0:03:01.9]} 5. Qd2 {[%clk 0:02:56.7]}
5... a6 {[%clk 0:03:02]} 6. a4 {[%clk 0:02:55.3]} 6... b6 {[%clk 0:03:01.6]} 7.
f3 {[%clk 0:02:54.6]} 7... e6 {[%clk 0:03:01.8]} 8. h4 {[%clk 0:02:44]} 8... h6
{[%clk 0:03:01.3]} 9. h5 {[%clk 0:02:42]} 9... g5 {[%clk 0:03:01.6]} 10. g4
{[%clk 0:02:40.8]} 10... Ne7 {[%clk 0:03:01.4]} 11. Nge2 {[%clk 0:02:40.8]}
11... Bb7 {[%clk 0:03:01.5]} 12. Ng3 {[%clk 0:02:40.7]} 12... d5 {[%clk
0:02:31.7]} 13. Bd3 {[%clk 0:02:28.7]} 13... c5 {[%clk 0:02:30.6]} 14. e5 {[%clk
0:01:39.4]} 14... cxd4 {[%clk 0:02:27.3]} 15. Bxd4 {[%clk 0:01:39.3]} 15... Nxe5
{[%clk 0:02:26.4]} 16. Be2 {[%clk 0:01:34.8]} 16... Qc7 {[%clk 0:02:22.4]} 17.
O-O-O {[%clk 0:01:14.7]} 17... N7c6 {[%clk 0:02:22]} 18. Bf2 {[%clk 0:01:14]}
18... O-O {[%clk 0:01:56.9]} 19. Kb1 {[%clk 0:01:07.7]} 19... Rac8 {[%clk
0:01:47.2]} 20. f4 {[%clk 0:01:04.9]} 20... gxf4 {[%clk 0:01:39.4]} 21. Qxf4
{[%clk 0:01:04.4]} 21... Qe7 {[%clk 0:01:14.6]} 22. Bxb6 {[%clk 0:00:56.9]}
22... Nb4 {[%clk 0:01:08.2]} 23. Bd4 {[%clk 0:00:48.6]} 23... Nbc6 {[%clk
0:01:07.9]} 24. Bb6 {[%clk 0:00:48]} 24... Rb8 {[%clk 0:01:03.4]} 25. a5 {[%clk
0:00:46.2]} 25... Ba8 {[%clk 0:01:01.8]} 26. Bxa6 {[%clk 0:00:44.1]} 26... Nc4
{[%clk 0:00:51.6]} 27. Bxc4 {[%clk 0:00:43.2]} 27... dxc4 {[%clk 0:00:51.1]} 28.
Nge4 {[%clk 0:00:35.8]} 28... Ne5 {[%clk 0:00:43.8]} 29. Rhe1 {[%clk 0:00:31.6]}
29... f5 {[%clk 0:00:36.8]} 30. gxf5 {[%clk 0:00:29.8]} 30... Rxf5 {[%clk
0:00:36.2]} 31. Qg3 {[%clk 0:00:26.9]} 31... Kh8 {[%clk 0:00:29.9]} 32. Rf1
{[%clk 0:00:18]} 32... Rg8 {[%clk 0:00:23.2]} 33. Rxf5 {[%clk 0:00:17.9]} 33...
exf5 {[%clk 0:00:22.7]} 34. Nc5 {[%clk 0:00:18]} 34... Nd3 {[%clk 0:00:16.6]}
35. cxd3 {[%clk 0:00:15.4]} 35... Bxc3 {[%clk 0:00:16.6]} 36. Qh2 {[%clk
0:00:11.7]} 36... Bd4 {[%clk 0:00:16.2]} 37. dxc4 {[%clk 0:00:10.4]} 37... Bxc5
{[%clk 0:00:16.2]} 38. Bxc5 {[%clk 0:00:10.3]} 38... Qxc5 {[%clk 0:00:16.5]} 39.
Rd5 {[%clk 0:00:10]} 39... Bxd5 {[%clk 0:00:16.3]} 40. cxd5 {[%clk 0:00:09.9]}
40... Qxd5 {[%clk 0:00:15.6]} 41. Qc2 {[%clk 0:00:09.6]} 41... Rd8 {[%clk
0:00:14.4]} 42. Qc3+ {[%clk 0:00:08.4]} 42... Qd4 {[%clk 0:00:14.1]} 43. Qc7
{[%clk 0:00:07.7]} 43... Qd3+ {[%clk 0:00:13.8]} 44. Ka2 {[%clk 0:00:07.5]}
44... Qd5+ {[%clk 0:00:13.5]} 45. Ka3 {[%clk 0:00:06.3]} 45... Rd7 {[%clk
0:00:13]} 46. Qc8+ {[%clk 0:00:06.1]} 46... Kg7 {[%clk 0:00:13.4]} 47. b4 {[%clk
0:00:06.6]} 47... Qd3+ {[%clk 0:00:10.5]} 48. Ka4 {[%clk 0:00:06.8]} 48... Qd4
{[%clk 0:00:09.8]} 49. Qc6 {[%clk 0:00:05.9]} 49... Qd6 {[%clk 0:00:08.6]} 50.
Qg2+ {[%clk 0:00:03.5]} 50... Kf7 {[%clk 0:00:07.9]} 51. Qf3 {[%clk 0:00:02.1]}
51... Qe5 {[%clk 0:00:07.4]} 52. Qb3+ {[%clk 0:00:01.3]} 52... Qe6 {[%clk
0:00:07.3]} 53. Qg3 {[%clk 0:00:01.5]} 53... Qf6 {[%clk 0:00:06.2]} 0-1

[Event "Late-Titled-Tuesday-Blitz-April-30-2024"]
[Site "Chess.com"]
[Date "2024.04.30"]
[Round "7"]
[White "klercaku"]
[Black "IsaqueGoncalvesSanto"]
[Result "1-0"]
[WhiteElo "2249"]
[BlackElo "1860"]
[TimeControl "180+1"]
[EndTime "15:18:32 PDT"]
[Termination "klercaku won on time"]

1. e4 {[%clk 0:03:00.9]} 1... e6 {[%clk 0:02:59.6]} 2. d4 {[%clk 0:03:00.2]}
2... d5 {[%clk 0:02:58.1]} 3. Nd2 {[%clk 0:03:00.2]} 3... Nc6 {[%clk 0:02:56.7]}
4. c3 {[%clk 0:02:56.4]} 4... Nf6 {[%clk 0:02:54.8]} 5. e5 {[%clk 0:02:56.1]}
5... Nd7 {[%clk 0:02:54]} 6. Ngf3 {[%clk 0:02:51.7]} 6... f6 {[%clk 0:02:53.2]}
7. exf6 {[%clk 0:02:51]} 7... Qxf6 {[%clk 0:02:50.4]} 8. Bd3 {[%clk 0:02:50]}
8... Bd6 {[%clk 0:02:46]} 9. O-O {[%clk 0:02:48.6]} 9... O-O {[%clk 0:02:44.6]}
10. Nb3 {[%clk 0:02:35]} 10... e5 {[%clk 0:02:40.8]} 11. dxe5 {[%clk 0:02:35]}
11... Ndxe5 {[%clk 0:02:39.1]} 12. Be2 {[%clk 0:02:26.6]} 12... Be6 {[%clk
0:02:24.4]} 13. Nxe5 {[%clk 0:02:21.7]} 13... Nxe5 {[%clk 0:02:22.3]} 14. Nd4
{[%clk 0:02:19.2]} 14... Bd7 {[%clk 0:01:58.3]} 15. Nf3 {[%clk 0:02:09.2]} 15...
c6 {[%clk 0:01:50]} 16. Nxe5 {[%clk 0:01:49.3]} 16... Qxe5 {[%clk 0:01:47.2]}
17. f4 {[%clk 0:01:39]} 17... Qe7 {[%clk 0:00:55.4]} 18. Bd2 {[%clk 0:01:22.2]}
18... Rae8 {[%clk 0:00:53.3]} 19. Bd3 {[%clk 0:01:18.4]} 19... Qh4 {[%clk
0:00:46.1]} 20. Qf3 {[%clk 0:01:06.3]} 20... Bg4 {[%clk 0:00:44.5]} 21. Qg3
{[%clk 0:00:55.9]} 21... Qxg3 {[%clk 0:00:41.8]} 22. hxg3 {[%clk 0:00:56.8]}
22... Be2 {[%clk 0:00:41.7]} 23. Bxe2 {[%clk 0:00:56.2]} 23... Rxe2 {[%clk
0:00:41.4]} 24. Rad1 {[%clk 0:00:56.1]} 24... Rfe8 {[%clk 0:00:38]} 25. Rfe1
{[%clk 0:00:50.4]} 25... Bc5+ {[%clk 0:00:21.9]} 26. Kh2 {[%clk 0:00:44.2]}
26... Kf7 {[%clk 0:00:20.6]} 27. Rf1 {[%clk 0:00:20.6]} 27... g6 {[%clk
0:00:13.7]} 28. Kh3 {[%clk 0:00:18.6]} 28... Bf2 {[%clk 0:00:12.9]} 29. g4
{[%clk 0:00:13.6]} 29... h5 {[%clk 0:00:12.2]} 30. g3 {[%clk 0:00:07.3]} 30...
Rh8 {[%clk 0:00:04.7]} 31. gxh5 {[%clk 0:00:03.8]} 31... gxh5 {[%clk 0:00:04]}
32. Kg2 {[%clk 0:00:04]} 32... Bb6+ {[%clk 0:00:03.4]} 33. Kf3 {[%clk
0:00:03.8]} 33... Rhe8 {[%clk 0:00:02.5]} 34. Rfe1 {[%clk 0:00:02.6]} 34... Rxe1
{[%clk 0:00:02.3]} 35. Rxe1 {[%clk 0:00:02.8]} 35... Rxe1 {[%clk 0:00:02.9]} 36.
Bxe1 {[%clk 0:00:03.7]} 36... Kg6 {[%clk 0:00:03]} 37. Bd2 {[%clk 0:00:03.3]}
37... a6 {[%clk 0:00:03.1]} 38. b3 {[%clk 0:00:03.6]} 38... Bg1 {[%clk
0:00:02.7]} 39. a4 {[%clk 0:00:03.6]} 39... Kf5 {[%clk 0:00:02.7]} 40. Be1
{[%clk 0:00:03.2]} 40... Bb6 {[%clk 0:00:01.9]} 41. Bd2 {[%clk 0:00:03]} 41...
Bd8 {[%clk 0:00:01.8]} 42. Be1 {[%clk 0:00:03.2]} 42... Bf6 {[%clk 0:00:01.9]}
43. Bd2 {[%clk 0:00:03.1]} 43... b6 {[%clk 0:00:02.2]} 44. Be1 {[%clk
0:00:03.3]} 44... b5 {[%clk 0:00:02.5]} 45. axb5 {[%clk 0:00:02.5]} 45... axb5
{[%clk 0:00:02.9]} 46. Bd2 {[%clk 0:00:02.8]} 46... c5 {[%clk 0:00:03.2]} 47.
Be1 {[%clk 0:00:03.2]} 47... d4 {[%clk 0:00:03.5]} 48. cxd4 {[%clk 0:00:03.5]}
48... Bxd4 {[%clk 0:00:03.3]} 49. Bd2 {[%clk 0:00:03.4]} 49... c4 {[%clk
0:00:03.4]} 50. bxc4 {[%clk 0:00:03.5]} 50... bxc4 {[%clk 0:00:03.3]} 51. Bc1
{[%clk 0:00:03.4]} 51... c3 {[%clk 0:00:02.2]} 52. Ba3 {[%clk 0:00:03.4]} 52...
c2 {[%clk 0:00:01.4]} 53. Bc1 {[%clk 0:00:03.8]} 1-0

[Event "Late-Titled-Tuesday-Blitz-April-30-2024"]
[Site "Chess.com"]
[Date "2024.04.30"]
[Round "7"]
[White "falzehope0"]
[Black "karinachess1"]
[Result "0-1"]
[WhiteElo "2426"]
[BlackElo "2602"]
[TimeControl "180+1"]
[EndTime "15:18:33 PDT"]
[Termination "karinachess1 won by resignation"]

1. d4 {[%clk 0:03:00.9]} 1... Nf6 {[%clk 0:02:56.6]} 2. e3 {[%clk 0:03:01.8]}
2... e6 {[%clk 0:02:56.6]} 3. Bd3 {[%clk 0:03:02.4]} 3... b6 {[%clk 0:02:51.9]}
4. f4 {[%clk 0:03:02.6]} 4... Bb7 {[%clk 0:02:52.5]} 5. Nf3 {[%clk 0:03:03.2]}
5... Be7 {[%clk 0:02:49.9]} 6. O-O {[%clk 0:03:03.6]} 6... d5 {[%clk 0:02:50]}
7. Nbd2 {[%clk 0:03:03.8]} 7... Nbd7 {[%clk 0:02:48.9]} 8. Ne5 {[%clk 0:03:04]}
8... Ne4 {[%clk 0:02:49.3]} 9. Qh5 {[%clk 0:03:02.4]} 9... O-O {[%clk 0:02:44]}
10. Nxe4 {[%clk 0:02:55.7]} 10... dxe4 {[%clk 0:02:42.8]} 11. Bb5 {[%clk
0:02:54.2]} 11... Nf6 {[%clk 0:02:40]} 12. Qh3 {[%clk 0:02:53]} 12... c5 {[%clk
0:02:35.5]} 13. c3 {[%clk 0:02:51]} 13... Qd5 {[%clk 0:02:10.4]} 14. Bc4 {[%clk
0:02:41.1]} 14... Qd6 {[%clk 0:02:10.7]} 15. f5 {[%clk 0:02:39.4]} 15... exf5
{[%clk 0:02:05.4]} 16. Qxf5 {[%clk 0:02:36.1]} 16... Bd5 {[%clk 0:02:01.3]} 17.
Ba6 {[%clk 0:02:20.2]} 17... Rad8 {[%clk 0:01:50]} 18. Bd2 {[%clk 0:02:16]}
18... g6 {[%clk 0:01:26.2]} 19. Qf2 {[%clk 0:02:11.4]} 19... Nh5 {[%clk
0:01:26]} 20. c4 {[%clk 0:01:58.6]} 20... Be6 {[%clk 0:01:26.1]} 21. Bc3 {[%clk
0:01:53.6]} 21... f6 {[%clk 0:01:19]} 22. Nc6 {[%clk 0:01:36.4]} 22... Qxc6
{[%clk 0:01:12.5]} 23. d5 {[%clk 0:01:36.8]} 23... Qd6 {[%clk 0:01:11.6]} 24.
dxe6 {[%clk 0:01:36.8]} 24... Qxe6 {[%clk 0:01:12.5]} 25. Rad1 {[%clk
0:01:27.8]} 25... Rd3 {[%clk 0:01:08.8]} 26. Rxd3 {[%clk 0:01:21.7]} 26... exd3
{[%clk 0:01:09.7]} 27. b3 {[%clk 0:01:19.1]} 27... Qe4 {[%clk 0:01:04.7]} 28. h3
{[%clk 0:01:13.5]} 28... Bd6 {[%clk 0:00:58.5]} 29. Qf3 {[%clk 0:01:10.6]} 29...
Ng3 {[%clk 0:00:48.3]} 30. Rd1 {[%clk 0:01:00.6]} 30... Ne2+ {[%clk 0:00:45.8]}
31. Kf2 {[%clk 0:00:56.2]} 31... Nxc3 {[%clk 0:00:29.1]} 32. Rd2 {[%clk
0:00:45.4]} 32... Be5 {[%clk 0:00:24.1]} 33. Bb7 {[%clk 0:00:39.7]} 33... Qh4+
{[%clk 0:00:17.6]} 34. Kf1 {[%clk 0:00:35]} 34... Rd8 {[%clk 0:00:17.6]} 35.
Bd5+ {[%clk 0:00:32.3]} 35... Nxd5 {[%clk 0:00:17.4]} 36. cxd5 {[%clk
0:00:33.2]} 36... c4 {[%clk 0:00:16.4]} 37. bxc4 {[%clk 0:00:33]} 37... Qxc4
{[%clk 0:00:17.3]} 38. Rd1 {[%clk 0:00:31]} 38... d2+ {[%clk 0:00:16.9]} 39. Kg1
{[%clk 0:00:30.7]} 39... Qxd5 {[%clk 0:00:15.7]} 40. e4 {[%clk 0:00:30.5]} 40...
Qd4+ {[%clk 0:00:15.7]} 41. Kh1 {[%clk 0:00:30.3]} 41... Qd3 {[%clk 0:00:16.2]}
42. Qg4 {[%clk 0:00:29.7]} 42... Kg7 {[%clk 0:00:14.7]} 43. Qe6 {[%clk
0:00:27.6]} 43... Qd7 {[%clk 0:00:14.6]} 44. Qb3 {[%clk 0:00:27.3]} 44... Bb8
{[%clk 0:00:14.8]} 45. Qc3 {[%clk 0:00:26.9]} 45... Qd6 {[%clk 0:00:14.6]} 46.
g3 {[%clk 0:00:24.6]} 46... Qxg3 {[%clk 0:00:13.8]} 47. Qxg3 {[%clk 0:00:23.8]}
47... Bxg3 {[%clk 0:00:14.7]} 48. Kg2 {[%clk 0:00:24.5]} 48... Be5 {[%clk
0:00:14.8]} 49. Kf3 {[%clk 0:00:25.4]} 49... Bc3 {[%clk 0:00:15.1]} 50. Ke3
{[%clk 0:00:25.8]} 50... Ba5 {[%clk 0:00:15.9]} 51. a3 {[%clk 0:00:25.7]} 51...
Rc8 {[%clk 0:00:16.3]} 52. Ke2 {[%clk 0:00:24.9]} 52... Rc1 {[%clk 0:00:15.8]}
53. h4 {[%clk 0:00:23.7]} 53... f5 {[%clk 0:00:16.2]} 54. exf5 {[%clk
0:00:23.7]} 54... gxf5 {[%clk 0:00:17.1]} 55. h5 {[%clk 0:00:24.1]} 55... f4
{[%clk 0:00:17.7]} 56. a4 {[%clk 0:00:23.4]} 56... f3+ {[%clk 0:00:17.8]} 57.
Kf2 {[%clk 0:00:23.6]} 57... Rxd1 {[%clk 0:00:18]} 58. h6+ {[%clk 0:00:24.2]}
58... Kxh6 {[%clk 0:00:17.4]} 59. Kxf3 {[%clk 0:00:22.6]} 59... Rf1+ {[%clk
0:00:17.7]} 60. Ke3 {[%clk 0:00:21.5]} 60... d1=Q {[%clk 0:00:16.2]} 61. Ke4
{[%clk 0:00:21.8]} 61... Qf3+ {[%clk 0:00:15.3]} 62. Ke5 {[%clk 0:00:21.4]}
62... Rd1 {[%clk 0:00:13.4]} 63. Ke6 {[%clk 0:00:20.8]} 63... Qd5+ {[%clk
0:00:12.9]} 64. Ke7 {[%clk 0:00:20.7]} 64... Re1+ {[%clk 0:00:13]} 65. Kf8
{[%clk 0:00:20.4]} 65... Qd8+ {[%clk 0:00:12.6]} 66. Kf7 {[%clk 0:00:16.8]}
66... Qe7+ {[%clk 0:00:11.9]} 0-1